bitfinex-derivatives/quotes_ETHF0:USTF0_20251118
["timestamp","ask_amount","ask_price","bid_price","bid_amount"]
[1763448039065,0.79493505,2987.5,2987.4,0.2504]
[1763448039268,0.00330498,2987.6,2987.5,0.4373]
[1763448039466,0.00330498,2987.6,2987.4,0.2504]
[1763448039667,0.00330498,2987.6,2986.8,0.2504]
[1763448039668,6.0,2987.5,2986.8,0.2504]
[1763448039870,2.80576605,2987.1,2986.8,0.2504]
[1763448040165,0.7953888,2987.0,2986.2,0.25338916]
[1763448040367,1.97241502,2987.0,2986.2,0.79652916]
[1763448040560,1.97241502,2987.0,2986.2,0.25338916]
[1763448040961,1.97241502,2987.0,2986.8,0.2504]
[1763448040962,0.7953888,2986.9,2986.8,0.2504]
[1763448041263,0.7953888,2986.9,2986.8,0.6877]
[1763448041459,0.7953888,2986.9,2986.8,0.2504]
[1763448041666,1.17702622,2987.3,2986.8,0.2504]
[1763448041970,1.97241502,2987.3,2986.8,0.2504]
[1763448042265,0.7953888,2987.2,2986.8,0.2504]
[1763448042459,0.7953888,2987.1,2986.8,0.2504]
[1763448042662,0.7953888,2987.0,2986.8,0.2504]
[1763448042858,0.7953888,2986.9,2986.8,0.2504]
[1763448043059,1.17702622,2987.3,2986.8,0.2504]
[1763448043366,2.80576605,2987.1,2986.8,0.2504]
[1763448043571,0.7953888,2987.0,2986.8,0.2504]
[1763448044368,0.7953888,2986.9,2986.8,0.6877]
[1763448044771,2.80576605,2987.1,2986.3,0.54312]
[1763448045070,0.7953888,2987.0,2986.4,0.5431]
[1763448045262,0.7953888,2987.0,2986.2,0.25338916]
[1763448045263,0.7953888,2987.0,2986.2,0.79650916]
[1763448045459,0.7953888,2987.0,2986.3,0.54312]
[1763448047075,0.7953888,2987.0,2986.4,0.5431]
[1763448048075,0.7953888,2987.0,2986.2,0.25338916]
[1763448048571,0.7953888,2987.0,2986.2,0.79651916]
[1763448048774,0.7953888,2987.0,2986.2,0.25338916]
[1763448048963,0.7953888,2987.0,2986.3,0.54312]
[1763448049760,0.7953888,2987.0,2986.2,0.79652916]
[1763448049973,0.7953888,2987.0,2986.3,0.54312]
[1763448050373,1.97241502,2987.0,2986.3,0.54312]
[1763448050575,0.7953888,2986.9,2986.3,0.54312]
[1763448050770,0.7953888,2986.8,2986.3,0.54312]
[1763448050971,1.17702622,2987.1,2986.8,0.2504]
[1763448051777,3.98279227,2987.1,2986.8,0.2504]
[1763448051980,0.79658376,2987.0,2986.8,0.2504]
[1763448053368,1.97360998,2987.0,2986.2,0.79651916]
[1763448053571,1.97360998,2987.0,2986.2,0.25338916]
[1763448054478,2.80576605,2986.7,2986.2,0.25338916]
[1763448054781,0.79658376,2986.6,2986.2,0.25338916]
[1763448054983,1.97360998,2986.6,2986.2,0.25338916]
[1763448055375,1.97360998,2986.5,2986.2,0.25338916]
[1763448055583,0.79658376,2986.4,2986.2,0.25338916]
[1763448055879,1.17702622,2986.5,2986.2,0.25338916]
[1763448055880,0.79658376,2986.3,2986.2,0.25338916]
[1763448056275,2.80576605,2986.3,2986.1,0.00502479]
[1763448056470,1.97994801,2986.2,2986.1,0.00502479]
[1763448056681,1.97994801,2986.2,2985.3,0.54329]
[1763448057083,1.97994801,2986.2,2985.4,0.54328]
[1763448057271,1.97994801,2986.2,2985.3,0.54329]
[1763448057476,1.97994801,2986.2,2985.6,0.24959008]
[1763448057784,4.79073885,2986.2,2986.0,0.2366]
[1763448057989,0.79658376,2986.1,2985.6,0.25461487]
[1763448058180,2.80576605,2985.7,2985.6,0.00831487]
[1763448058483,3.60234981,2985.7,2985.6,0.00831487]
[1763448059883,0.79658376,2985.7,2985.6,0.00831487]
[1763448060074,2.80576605,2985.7,2985.6,0.00831487]
[1763448060270,3.60234981,2985.7,2985.6,0.00831487]
[1763448060475,3.60234981,2985.7,2985.6,0.38761487]
[1763448060671,0.00502479,2986.2,2986.1,0.3793]
[1763448061178,1.18208468,2987.2,2987.0,0.54299]
[1763448061379,1.7673527,2987.9,2987.4,0.2366]
[1763448061581,2.80576605,2987.7,2987.4,0.2366]
[1763448061981,2.80576605,2987.7,2986.8,0.77963]
[1763448062186,2.80576605,2987.3,2986.8,0.2366]
[1763448062380,2.80576605,2986.9,2986.8,0.24162479]
[1763448062686,8.27501908,2987.3,2986.8,0.24162479]
[1763448062687,10.26478513,2987.3,2986.8,0.24162479]
[1763448064390,2.80576605,2986.9,2986.8,0.00502479]
[1763448064590,2.80576605,2986.9,2986.8,0.24162479]
[1763448064984,4.57813783,2987.3,2986.8,0.24162479]
[1763448065196,0.00501908,2987.3,2987.2,0.3793]
[1763448065386,2.81078513,2987.3,2986.8,0.24162479]
[1763448066981,4.57813783,2987.3,2986.8,0.24162479]
[1763448067391,2.81078513,2987.3,2986.8,0.24162479]
[1763448067589,0.00501908,2987.3,2987.2,0.3793]
[1763448069787,0.00501908,2987.3,2986.8,0.24162479]
[1763448072688,0.79329571,2987.3,2986.8,0.24162479]
[1763448073289,0.00501908,2987.3,2987.2,0.92226]
[1763448073504,0.00501908,2987.3,2987.2,0.3793]
[1763448073989,0.00501908,2987.3,2987.2,0.92226]
[1763448074195,0.00501908,2987.3,2987.2,0.3793]
[1763448074395,0.00501908,2987.3,2987.2,0.92226]
[1763448074895,0.00330498,2987.6,2987.5,0.92221]
[1763448075095,0.00330498,2987.6,2987.5,0.3793]
[1763448075288,0.00330498,2987.6,2987.5,0.92221]
[1763448075887,0.78840944,2988.4,2988.0,0.2366]
[1763448076295,0.78840944,2988.3,2988.2,0.3793]
[1763448076498,0.78840944,2988.6,2988.2,0.3793]
[1763448076701,0.78840944,2988.6,2988.0,0.2366]
[1763448077198,0.79207312,2988.6,2988.0,0.23943661]
[1763448077902,2.80576605,2988.3,2988.0,0.00283661]
[1763448078106,2.55576214,2988.2,2987.4,0.2366]
[1763448078300,2.80576605,2987.6,2987.4,0.2366]
[1763448078601,0.78840944,2987.5,2987.4,0.2366]
[1763448079101,0.78840944,2987.5,2987.4,0.24066321]
[1763448079687,0.78840944,2987.5,2987.4,0.58686321]
[1763448079897,0.78840944,2987.9,2987.4,0.58686321]
[1763448080103,0.78840944,2987.9,2987.4,0.00406321]
[1763448080303,0.78840944,2987.9,2987.4,0.22496321]
[1763448081192,2.80576605,2987.6,2987.4,0.00406321]
[1763448081395,0.78840944,2987.5,2987.4,0.00406321]
[1763448081700,0.78840944,2987.5,2987.4,0.22496321]
[1763448086895,0.78840944,2987.5,2987.4,0.00406321]
[1763448087505,0.78707929,2987.5,2987.4,0.00406321]
[1763448088007,0.78707929,2987.5,2987.4,0.59446321]
[1763448088608,0.78707929,2987.5,2987.4,0.22386321]
[1763448091115,0.78707929,2987.5,2987.4,0.59446321]
[1763448092305,0.78707929,2987.6,2987.4,0.59446321]
[1763448092503,0.78707929,2987.5,2987.4,0.59446321]
[1763448092811,0.78553236,2987.6,2987.5,0.3706]
[1763448093211,3.59129841,2987.6,2986.8,0.24162479]
[1763448093504,3.98855905,2987.1,2986.8,0.24162479]
[1763448093708,0.78553236,2987.0,2986.8,0.24162479]
[1763448094206,0.78553236,2987.0,2986.8,0.24416253]
[1763448094415,9.442793,2986.9,2986.8,0.24416253]
[1763448094709,10.22832536,2986.9,2986.8,0.24416253]
[1763448094915,12.6748256,2986.9,2986.8,0.24416253]
[1763448095108,12.6748256,2986.9,2986.8,0.00756253]
[1763448095411,12.67441015,2986.9,2986.8,0.00756253]
[1763448096207,12.67441015,2986.9,2986.2,0.2366]
[1763448096208,11.4920326,2986.9,2986.2,0.2366]
[1763448096407,2.44650024,2986.4,2986.2,0.2366]
[1763448096609,0.78553236,2986.3,2985.5,0.2198]
[1763448096810,1.96721577,2986.3,2986.0,0.2198]
[1763448097008,2.44650024,2986.1,2986.0,0.2198]
[1763448097310,3.2320326,2986.1,2986.0,0.22347535]
[1763448098016,1.18168341,2987.3,2987.0,0.2198]
[1763448098210,1.18168341,2987.4,2987.0,0.2198]
[1763448098613,11.88918365,2987.5,2987.0,0.2198]
[1763448098808,11.88918365,2987.5,2986.5,0.2198]
[1763448098809,2.44650024,2987.1,2986.5,0.2198]
[1763448099110,4.89300048,2986.8,2986.0,0.00367535]
[1763448099312,3.62818365,2986.3,2985.0,0.2198]
[1763448099514,2.44650024,2985.7,2985.2,0.54332]
[1763448100010,2.44650024,2985.7,2985.1,0.54334]
[1763448100404,2.44650024,2985.7,2985.5,0.22216921]
[1763448100608,2.44650024,2986.1,2985.6,0.3706]
[1763448100814,2.44650024,2986.1,2985.6,0.91385]
[1763448101012,3.62818365,2986.5,2985.7,0.54323]
[1763448101312,3.62818365,2986.5,2985.8,0.54321]
[1763448101516,2.44650024,2986.5,2985.8,0.54321]
[1763448101714,2.44650024,2986.5,2985.5,0.22216921]
[1763448101715,2.44650024,2986.5,2986.2,0.2198]
[1763448102115,0.00502479,2986.7,2986.4,0.3706]
[1763448102714,0.00502479,2986.7,2986.2,0.2198]
[1763448103414,2.44650024,2986.5,2986.2,0.2198]
[1763448106126,0.00502479,2986.7,2986.4,0.3706]
[1763448108811,0.00502479,2986.7,2986.5,0.2198]
[1763448109815,0.00502479,2986.7,2986.2,0.2198]
[1763448110032,2.44650024,2986.4,2986.2,0.2198]
[1763448110331,0.78058836,2986.3,2986.2,0.5904]
[1763448111330,0.00502479,2986.7,2986.2,0.5904]
[1763448111331,0.78561315,2986.7,2986.2,0.5904]
[1763448111524,0.78561315,2986.7,2986.5,0.2198]
[1763448115433,0.78561315,2986.7,2986.2,0.2198]
[1763448115629,0.78561315,2986.7,2986.5,0.2198]
[1763448116441,0.78561315,2986.7,2986.6,0.3706]
[1763448116638,0.78561315,2986.7,2986.5,0.2198]
[1763448116835,0.78561315,2986.7,2986.2,0.2198]
[1763448117037,1.96729656,2986.7,2986.2,0.2198]
[1763448117944,2.44650024,2986.4,2985.5,0.22216921]
[1763448118140,2.44650024,2985.9,2985.5,0.22216921]
[1763448118339,0.78058836,2985.8,2985.5,0.22216921]
[1763448121231,0.78058836,2985.8,2985.5,0.00236921]
[1763448121440,2.44650024,2985.6,2984.5,0.2198]
[1763448121743,4.89300048,2984.6,2983.0,0.2046]
[1763448121940,2.44650024,2983.6,2983.0,0.2046]
[1763448122133,2.44650024,2983.2,2983.0,0.2046]
[1763448122329,0.00395633,2983.2,2983.0,0.00260799]
[1763448122545,2.45045657,2983.2,2983.0,0.00260799]
[1763448122844,2.45045657,2983.2,2982.5,0.2046]
[1763448122845,0.77772953,2983.1,2982.5,0.2046]
[1763448123141,2.44650024,2982.6,2980.7,0.54413]
[1763448123446,2.44650024,2981.6,2980.2,0.30441807]
[1763448123745,2.44650024,2981.0,2980.2,0.30441807]
[1763448123943,0.00502479,2980.9,2980.3,0.00502479]
[1763448124339,0.00502479,2980.9,2980.3,0.54924479]
[1763448124741,0.00502479,2980.9,2980.3,0.00502479]
[1763448124946,2.44650024,2980.6,2980.3,0.00502479]
[1763448125743,0.00502479,2980.9,2980.3,0.54922479]
[1763448125939,2.44650024,2980.8,2980.3,0.00502479]
[1763448126645,2.44650024,2980.4,2980.3,0.00502479]
[1763448126852,0.00502479,2980.9,2980.3,0.00502479]
[1763448127045,0.00502479,2980.9,2980.8,0.5393]
[1763448127346,0.00502479,2980.9,2980.8,0.2046]
[1763448127539,0.15662479,2980.9,2980.3,0.00502479]
[1763448128148,0.00502479,2980.9,2980.3,0.54923479]
[1763448128343,0.00502479,2980.9,2980.3,0.00502479]
[1763448129139,0.00502479,2980.9,2980.8,0.5393]
[1763448130442,0.00502479,2980.9,2980.8,6.5393]
[1763448130644,0.00502479,2980.9,2980.8,0.5393]
[1763448130835,0.00410925,2981.0,2980.9,0.87881]
[1763448131040,9.25e-06,2981.0,2980.9,6.87881]
[1763448131747,9.25e-06,2981.0,2980.8,0.2046]
[1763448132249,9.25e-06,2981.0,2980.9,0.3347]
[1763448132842,9.25e-06,2981.0,2980.9,6.3347]
[1763448133043,9.25e-06,2981.0,2980.8,0.74872]
[1763448133044,2.44650024,2982.0,2981.1,0.3347]
[1763448133245,2.61220024,2983.2,2980.8,0.2046]
[1763448133246,2.44650024,2982.4,2982.0,0.2046]
[1763448133438,1.18187348,2983.4,2982.0,0.2046]
[1763448133439,2.44650024,2982.8,2982.1,0.54388]
[1763448133845,2.44650024,2982.8,2982.2,0.54386]
[1763448134045,2.45547922,2982.8,2982.2,0.00502479]
[1763448134244,2.45547922,2982.8,2982.6,0.2046]
[1763448134454,2.45547922,2982.8,2982.6,0.20747878]
[1763448134641,0.1657,2982.7,2982.6,0.00287878]
[1763448134850,0.1657,2982.7,2982.2,0.00502479]
[1763448135148,2.61220024,2982.3,2982.2,0.00502479]
[1763448135342,2.44650024,2982.3,2981.8,0.3347]
[1763448135840,2.44650024,2982.3,2981.8,0.33792093]
[1763448136459,2.44650024,2982.3,2981.8,0.34294572]
[1763448136846,2.44650024,2982.3,2982.2,0.3347]
[1763448137147,2.44650024,2982.7,2982.2,0.3347]
[1763448137548,0.00897898,2982.8,2982.7,0.3347]
[1763448137746,0.00897898,2982.8,2982.0,0.2046]
[1763448137946,2.44650024,2982.6,2982.1,0.54388]
[1763448138155,2.44650024,2982.6,2982.0,0.2046]
[1763448138156,0.00897898,2982.8,2982.7,0.3347]
[1763448138753,1.26678397,2984.0,2983.2,0.74827]
[1763448138754,2.44650024,2983.9,2983.2,0.74827]
[1763448139054,2.44650024,2983.9,2983.2,0.2046]
[1763448139249,2.44650024,2983.5,2982.6,0.2046]
[1763448139561,2.44650024,2983.1,2982.6,0.2046]
[1763448139753,2.44650024,2983.1,2982.6,0.20962479]
[1763448139754,0.00918999,2983.1,2982.6,0.20962479]
[1763448140057,0.00918999,2983.1,2982.6,0.75341479]
[1763448141055,0.00918999,2983.1,2983.0,0.3381]
[1763448141359,0.00918999,2983.1,2982.6,0.75341479]
[1763448141557,0.00918999,2983.1,2982.6,0.20962479]
[1763448141766,2.45569023,2983.1,2982.6,0.20962479]
[1763448144756,0.00918999,2983.1,2982.6,0.20962479]
[1763448145368,0.00918999,2983.1,2983.0,0.3381]
[1763448146053,2.44650024,2984.1,2983.8,0.2053]
[1763448146257,2.44650024,2984.5,2983.8,0.2053]
[1763448146457,2.44650024,2984.5,2984.0,0.54354]
[1763448146764,21.53387348,2985.0,2982.0,0.2046]
[1763448146765,1.18187348,2984.1,2982.0,0.2046]
[1763448146957,2.44650024,2983.3,2982.6,0.75342479]
[1763448147262,2.44975286,2983.3,2982.6,0.21395469]
[1763448147761,2.44975286,2983.3,2982.6,0.75774469]
[1763448148264,0.1398,2982.7,2982.6,0.00935469]
[1763448148466,2.44650024,2982.9,2982.6,0.00935469]
[1763448148661,0.77135671,2982.8,2982.6,0.00935469]
[1763448148859,0.77135671,2982.8,2982.6,0.20425469]
[1763448149059,2.44650024,2982.9,2982.6,0.20425469]
[1763448149262,0.77257226,2982.8,2982.6,0.20425469]
[1763448149466,2.44650024,2982.9,2982.6,0.20425469]
[1763448150264,2.44650024,2983.1,2982.6,0.20425469]
[1763448150465,0.7724095,2983.0,2982.6,0.20425469]
[1763448151369,3.21890974,2982.9,2982.6,0.20425469]
[1763448151567,0.7724095,2982.8,2982.6,0.20425469]
[1763448152069,0.7724095,2982.8,2982.7,0.3553]
[1763448152370,0.00325262,2983.3,2982.7,0.3553]
[1763448152371,0.00325262,2983.3,2983.2,0.5502]
[1763448152570,2.36221975,2984.2,2983.8,0.1949]
[1763448152571,3.61181461,2984.2,2983.8,0.1949]
[1763448152867,1.93950634,2984.1,2983.8,0.1949]
[1763448153258,0.77419197,2984.0,2983.8,0.1949]
[1763448153455,0.77419197,2983.9,2983.8,0.1949]
[1763448153664,0.00278938,2983.9,2983.2,0.1949]
[1763448153866,2.44650024,2983.5,2983.2,0.1949]
[1763448154168,2.44650024,2983.5,2983.2,0.73858]
[1763448154363,2.44650024,2983.5,2983.2,0.1949]
[1763448154766,0.00278938,2983.9,2983.3,0.54367]
[1763448154960,0.77661111,2983.9,2983.5,0.54363]
[1763448155161,0.77661111,2983.9,2983.7,0.54359]
[1763448155365,0.77406378,2983.8,2983.7,0.54359]
[1763448155565,0.00278938,2983.9,2983.7,0.54359]
[1763448156057,0.00278938,2983.9,2983.5,0.54363]
[1763448156258,0.00278938,2983.9,2983.4,0.54364]
[1763448156480,0.00278938,2983.9,2983.2,0.1949]
[1763448156760,2.81412723,2983.9,2983.4,0.54365]
[1763448157266,0.00278938,2983.9,2983.2,0.1949]
[1763448157468,2.81412723,2983.9,2983.8,0.1949]
[1763448157663,3.58880839,2983.9,2983.8,0.1949]
[1763448157970,0.00278938,2983.9,2983.8,0.1949]
[1763448158163,0.00278938,2983.9,2983.8,0.5502]
[1763448159360,0.00278938,2983.9,2983.8,1.09378]
[1763448159758,0.77497513,2984.2,2984.1,0.89882]
[1763448159965,1.16531437,2984.6,2983.8,0.1949]
[1763448159966,1.94075578,2984.6,2984.4,0.1949]
[1763448160162,0.77544141,2984.5,2984.4,0.1949]
[1763448160371,1.16531437,2984.7,2984.4,0.1949]
[1763448160663,2.54825163,2984.8,2984.4,0.1949]
[1763448160664,1.16531437,2984.6,2984.4,0.1949]
[1763448160870,0.77544141,2984.5,2984.4,0.1949]
[1763448161077,3.58677926,2984.5,2984.4,0.1949]
[1763448161955,0.77544141,2984.5,2984.4,1.09367]
[1763448162161,0.7788798,2984.6,2984.5,0.3553]
[1763448162364,0.00299689,2984.6,2984.5,0.89875]
[1763448162669,0.77654,2984.7,2984.6,0.89873]
[1763448162872,1.16531437,2985.2,2985.0,0.5502]
[1763448163363,0.1489,2985.1,2984.5,0.54345]
[1763448163667,1.94249546,2985.2,2984.7,0.54341]
[1763448163970,0.00380521,2985.1,2984.5,0.00326387]
[1763448164163,0.00380521,2985.1,2985.0,0.5502]
[1763448164362,0.7809863,2985.1,2985.0,0.5502]
[1763448164563,0.00380521,2985.1,2985.0,0.5502]
[1763448165666,0.00380521,2985.1,2985.0,0.1949]
[1763448165866,0.00380521,2985.1,2984.6,0.54343]
[1763448166175,0.00380521,2985.1,2984.7,0.54341]
[1763448166370,0.00380521,2985.1,2985.0,0.1949]
[1763448167172,0.00380521,2985.1,2984.8,0.54339]
[1763448167173,0.15270521,2985.1,2984.5,0.00326387]
[1763448167375,2.81133785,2984.9,2984.5,0.00326387]
[1763448167564,0.77718109,2984.8,2984.7,0.3553]
[1763448167876,0.00380521,2985.1,2985.0,0.5502]
[1763448168172,0.00380521,2985.1,2985.0,1.09356]
[1763448168374,1.16531437,2986.0,2985.8,0.3553]
[1763448168564,2.81133785,2986.1,2986.0,0.3553]
[1763448168765,2.81133785,2986.5,2986.2,0.1949]
[1763448169269,2.81133785,2986.5,2985.0,0.73826]
[1763448169270,0.1489,2985.9,2985.0,0.73826]
[1763448169465,2.81133785,2985.8,2985.1,0.54334]
[1763448169666,2.81133785,2985.8,2985.0,0.1949]
[1763448169975,2.81133785,2985.8,2983.8,0.1949]
[1763448169976,2.81133785,2985.4,2984.5,0.54671387]
[1763448170272,0.00502479,2985.2,2984.5,0.00326387]
[1763448170465,0.00502479,2985.2,2984.7,0.00502479]
[1763448170666,2.81133785,2985.0,2984.7,0.00502479]
[1763448170968,0.1489,2984.8,2984.7,0.00502479]
[1763448171566,2.81133785,2985.0,2984.7,0.00502479]
[1763448172475,0.1489,2984.8,2984.7,0.00502479]
[1763448172871,1.31421437,2984.8,2984.7,0.00502479]
[1763448173170,0.1439,2984.6,2983.8,0.1949]
[1763448173375,2.81133785,2984.3,2983.8,0.73848]
[1763448173567,2.81133785,2984.3,2983.8,0.1949]
[1763448173766,2.81133785,2984.7,2983.9,0.54355]
[1763448174073,2.81552263,2984.7,2984.0,0.00502479]
[1763448175274,2.81552263,2984.7,2984.0,0.54856479]
[1763448175776,2.81552263,2984.7,2984.1,0.54352]
[1763448176074,2.81552263,2984.7,2984.0,0.00502479]
[1763448176281,2.81552263,2984.7,2984.0,0.54856479]
[1763448176580,2.81552263,2984.7,2984.1,0.54352]
[1763448176876,2.81552263,2984.7,2984.0,0.00502479]
[1763448177077,2.81552263,2984.7,2984.0,0.54856479]
[1763448177470,2.81552263,2984.7,2984.0,0.00502479]
[1763448178165,2.81133785,2984.3,2984.0,0.00502479]
[1763448178565,0.0751,2984.1,2984.0,0.00502479]
[1763448182172,0.0751,2984.1,2983.2,0.73858]
[1763448182380,2.81133785,2983.6,2983.2,0.73858]
[1763448182775,0.0701,2983.3,2983.2,0.1949]
[1763448182979,0.0701,2983.3,2982.0,0.1949]
[1763448183277,0.0701,2983.3,2982.7,0.00502479]
[1763448183278,2.81133785,2982.8,2982.7,0.00502479]
[1763448183669,3.58691621,2982.8,2982.7,0.00502479]
[1763448184078,2.81133785,2982.8,2982.7,0.00502479]
[1763448184271,2.81133785,2983.0,2982.7,0.00502479]
[1763448184470,0.77499444,2982.9,2982.7,0.00502479]
[1763448184670,2.81133785,2983.0,2982.7,0.00502479]
[1763448184973,0.77500389,2982.9,2982.7,0.00502479]
[1763448185174,2.81133785,2983.0,2982.7,0.00502479]
[1763448186482,3.97665222,2984.0,2983.5,0.3057]
[1763448186773,0.77438445,2983.9,2983.8,0.1833]
[1763448186979,8.69433785,2984.4,2983.8,0.1833]
[1763448187283,0.77450682,2984.3,2983.8,0.1833]
[1763448187476,0.77953161,2984.3,2983.8,0.1833]
[1763448188367,0.77953161,2984.3,2983.8,0.72687]
[1763448188575,0.77953161,2984.3,2983.8,0.1833]
[1763448190780,0.77953161,2984.3,2982.7,0.00502479]
[1763448190781,0.0701,2983.3,2982.7,0.00502479]
[1763448191175,0.0701,2983.3,2982.8,0.54376]
[1763448191686,0.0701,2982.8,2982.7,0.00502479]
[1763448191874,2.81133785,2983.0,2982.7,0.00502479]
[1763448194379,0.0701,2982.8,2982.7,0.00502479]
[1763448195191,2.81133785,2983.0,2982.7,0.00502479]
[1763448196985,0.0701,2982.8,2982.7,0.00502479]
[1763448197288,2.81133785,2983.0,2982.7,0.00502479]
[1763448197584,0.0701,2982.8,2982.7,0.00502479]
[1763448198277,0.0651,2982.1,2981.0,0.1833]
[1763448198480,0.0651,2981.5,2981.0,0.1833]
[1763448198880,0.0651,2981.1,2980.0,0.1833]
[1763448199382,2.81133785,2980.6,2980.5,0.00917797]
[1763448200477,2.81133785,2981.0,2980.5,0.00917797]
[1763448200683,0.00799553,2981.1,2980.8,0.1822]
[1763448201390,0.00799553,2981.1,2981.0,0.84199]
[1763448201882,0.00799553,2981.1,2980.8,0.1822]
[1763448202381,0.00799553,2981.1,2981.0,0.2979]
[1763448202581,0.00799553,2981.1,2980.8,0.1822]
[1763448203290,0.00799553,2981.1,2980.5,0.00917797]
[1763448203590,2.81133785,2980.9,2980.5,0.00917797]
[1763448205891,2.81933338,2981.1,2980.5,0.00917797]
[1763448206083,2.81133785,2980.7,2980.5,0.00917797]
[1763448206486,2.81133785,2980.7,2979.4,0.54437]
[1763448206790,2.81133785,2980.0,2978.9,0.54446]
[1763448206991,1.16531437,2981.0,2978.4,0.1822]
[1763448206992,1.16531437,2980.8,2978.4,0.1822]
[1763448207183,2.81133785,2979.7,2978.4,0.1822]
[1763448207482,2.81133785,2979.7,2979.1,0.54946339]
[1763448207684,2.81133785,2979.7,2979.1,0.00503339]
[1763448208284,10.62833785,2979.7,2979.1,0.00503339]
[1763448209287,11.08433785,2979.7,2979.1,0.00503339]
[1763448209680,11.08433785,2979.7,2979.1,0.54946339]
[1763448210087,11.08433785,2979.7,2979.1,0.00503339]
[1763448210488,11.08433785,2979.7,2979.1,0.54946339]
[1763448210683,2.81133785,2980.3,2979.7,0.54431]
[1763448210881,11.08533785,2980.3,2979.6,0.71654]
[1763448211582,11.08533785,2980.3,2979.6,0.1722]
[1763448211789,2.81133785,2979.9,2979.1,0.00503339]
[1763448212290,2.81133785,2979.9,2979.6,0.1722]
[1763448213388,2.81133785,2979.9,2979.1,0.00503339]
[1763448213694,2.81133785,2979.9,2977.2,0.1722]
[1763448213695,2.81133785,2979.2,2977.7,0.54469]
[1763448213986,2.81133785,2977.9,2977.2,0.1722]
[1763448214182,4.31233785,2977.9,2977.2,0.1722]
[1763448214377,4.31233785,2977.9,2977.2,0.71698]
[1763448214690,0.00503339,2977.8,2977.3,0.00503339]
[1763448215495,2.81133785,2977.5,2977.3,0.00503339]
[1763448215894,2.81133785,2977.4,2976.6,0.1722]
[1763448216093,2.81133785,2976.7,2976.6,0.1722]
[1763448216290,2.81133785,2976.7,2976.6,0.4554]
[1763448216591,2.81133785,2976.7,2976.6,0.1722]
[1763448216790,2.46290177,2976.8,2976.6,0.17633164]
[1763448217191,2.46290177,2976.8,2976.6,0.00413164]
[1763448218091,2.46290177,2977.2,2976.6,0.17633164]
[1763448218399,2.46290177,2977.7,2977.2,0.1722]
[1763448218688,2.46290177,2977.3,2976.6,0.72121164]
[1763448218896,2.46290177,2977.3,2976.6,0.17633164]
[1763448219093,2.46290177,2976.9,2976.6,0.17633164]
[1763448219390,2.46290177,2977.3,2977.2,0.1722]
[1763448219790,2.46290177,2977.3,2977.2,0.4554]
[1763448220298,0.00503339,2977.8,2977.2,6.1722]
[1763448220498,0.00503339,2977.8,2977.5,0.54472]
[1763448220992,0.00503339,2977.8,2977.3,0.54476]
[1763448221598,0.00503339,2977.8,2977.7,0.2832]
[1763448222095,0.00503339,2977.8,2977.3,0.4174]
[1763448222300,0.00503339,2977.8,2977.6,0.5447]
[1763448222599,2.46290177,2978.4,2978.1,0.54462]
[1763448222802,2.46290177,2978.4,2978.2,0.5446]
[1763448223099,2.46290177,2978.4,2978.3,0.2832]
[1763448223294,2.46290177,2978.4,2977.9,0.54465]
[1763448223595,2.46290177,2978.0,2977.9,0.28823339]
[1763448223893,0.00791441,2978.4,2977.9,0.00503339]
[1763448224095,2.46290177,2978.0,2977.9,0.00503339]
[1763448224491,2.46290177,2978.0,2977.9,3.339e-05]
[1763448225103,2.46290177,2978.0,2977.3,0.96216]
[1763448225104,2.46290177,2978.0,2977.3,0.4174]
[1763448225290,2.46290177,2977.4,2977.3,0.7006]
[1763448225493,2.47081618,2978.4,2977.3,0.7006]
[1763448225494,2.46290177,2977.8,2977.3,0.7006]
[1763448225898,2.46290177,2977.4,2977.3,0.4174]
[1763448226993,4.92580354,2977.4,2976.6,0.17633164]
[1763448227198,2.46290177,2976.7,2976.6,0.17633164]
[1763448227393,2.46290177,2977.1,2976.6,0.45953164]
[1763448227704,2.46290177,2977.1,2976.6,0.17633164]
[1763448228305,2.46290177,2976.7,2976.6,0.17633164]
[1763448229498,2.46290177,2976.7,2976.6,0.00413164]
[1763448230399,4.87,2976.9,2976.6,0.17633164]
[1763448230603,10.75790177,2977.2,2976.7,0.54487]
[1763448230803,1.16531437,2977.8,2976.8,0.54485]
[1763448230994,2.46290177,2977.3,2976.6,0.72121164]
[1763448231196,2.46290177,2977.3,2976.7,0.54487]
[1763448231591,2.46290177,2977.3,2977.2,0.1722]
[1763448232192,1.77281022,2978.2,2977.5,0.2832]
[1763448232193,2.46290177,2977.6,2977.5,0.2832]
[1763448232490,2.46290177,2978.0,2977.8,0.1722]
[1763448232696,0.00791441,2978.4,2977.8,0.4554]
[1763448233001,0.00791441,2978.4,2977.9,0.54464]
[1763448233205,2.46290177,2978.1,2977.8,0.71687]
[1763448233392,2.46290177,2978.1,2977.8,0.1722]
[1763448234096,2.46290177,2978.1,2977.2,0.1722]
[1763448234300,2.46290177,2977.5,2977.4,0.2832]
[1763448234898,2.46290177,2977.5,2977.3,0.54476]
[1763448235605,2.46290177,2977.5,2977.2,0.1722]
[1763448236107,2.46290177,2977.5,2977.2,0.71698]
[1763448236499,2.46290177,2977.5,2977.3,0.54476]
[1763448236808,0.77024878,2977.4,2976.6,0.17633164]
[1763448237101,0.77024878,2977.4,2976.9,0.54484]
[1763448237707,0.77024878,2977.4,2977.2,0.1593]
[1763448238007,0.77024878,2977.4,2977.2,0.70407]
[1763448238400,2.46290177,2977.9,2977.8,0.1593]
[1763448238604,3.23380988,2977.9,2977.8,0.1593]
[1763448239208,0.77090811,2977.9,2977.8,0.4328]
[1763448239404,3.62821614,2978.3,2978.2,0.2735]
[1763448239405,2.46290177,2978.3,2978.2,0.2735]
[1763448239709,3.23636028,2978.3,2978.0,0.54463]
[1763448239912,2.46290177,2978.3,2978.1,0.54462]
[1763448240408,0.77365693,2978.2,2977.9,0.54464]
[1763448240605,2.46290177,2978.3,2978.1,0.2735]
[1763448240914,1.16531437,2979.2,2979.1,0.2735]
[1763448241099,0.77454034,2979.2,2979.0,0.1593]
[1763448241403,2.46290177,2979.4,2979.0,0.70374]
[1763448241609,0.77404755,2979.3,2979.2,0.54441]
[1763448241804,2.46290177,2979.7,2979.6,0.1593]
[1763448242006,4.4048404,2979.7,2979.6,0.00367083]
[1763448242202,4.41207411,2979.7,2979.0,0.1593]
[1763448242403,2.46290177,2979.2,2979.0,0.1593]
[1763448242603,0.7740635,2979.1,2979.0,0.1593]
[1763448242803,0.7740635,2979.1,2978.4,0.1593]
[1763448243006,2.46290177,2978.5,2978.4,0.1593]
[1763448243514,2.46290177,2978.5,2978.4,0.16304816]
[1763448243714,1.17254808,2979.1,2979.0,0.1593]
[1763448244105,0.77430535,2979.2,2979.0,0.1593]